bitfinex/quotes_ETHUSD_20251023
["timestamp","ask_amount","ask_price","bid_price","bid_amount"]
[1761205444892,0.0002,3882.5,3882.4,13.85165063]
[1761205451610,0.0002,3882.5,3882.4,15.40685063]
[1761205452402,0.001,3884.6,3883.9,3.08161158]
[1761205452608,0.4669,3884.4,3883.9,12.20722674]
[1761205453309,0.4669,3884.4,3883.9,8.35722674]
[1761205454072,0.4659,3884.3,3883.9,8.35722674]
[1761205456306,0.4659,3884.3,3883.9,9.31353468]
[1761205457100,0.0002,3884.0,3883.9,9.31353468]
[1761205457308,0.4661,3884.0,3883.9,8.35722674]
[1761205457871,0.0002,3884.0,3883.9,8.35722674]
[1761205459203,0.0002,3884.0,3883.9,3.08161158]
[1761205459403,0.0002,3884.0,3883.9,6.35061158]
[1761205459404,0.4661,3884.0,3883.9,6.35061158]
[1761205460178,0.4661,3884.0,3883.9,3.269]
[1761205460378,0.4661,3884.0,3883.9,5.84373158]
[1761205462313,0.4661,3884.0,3883.9,5.97253158]
[1761205463080,0.0002,3884.0,3883.9,5.97253158]
[1761205463317,0.4661,3884.0,3883.9,5.97253158]
[1761205465097,0.0002,3884.0,3883.9,5.97253158]
[1761205465314,0.4657,3884.0,3883.9,5.97253158]
[1761205467015,0.4657,3884.0,3883.9,5.84373158]
[1761205468280,0.0002,3884.0,3883.9,5.84373158]
[1761205469312,0.0002,3884.0,3883.9,6.35061158]
[1761205469515,0.0002,3884.0,3883.9,7.25603544]
[1761205471317,0.0002,3884.0,3883.9,6.35061158]
[1761205471523,0.4366,3884.0,3883.9,6.35061158]
[1761205472912,0.0002,3884.0,3883.9,6.35061158]
[1761205473421,0.0002,3884.0,3883.9,6.79381158]
[1761205474506,0.0002,3884.0,3883.9,6.35061158]
[1761205474709,0.0002,3884.0,3883.9,7.45669696]
[1761205474926,0.0002,3884.0,3883.9,9.45509696]
[1761205475924,0.0002,3884.0,3883.9,10.15509696]
[1761205477733,0.0002,3884.0,3883.9,9.70989696]
[1761205478494,0.0002,3884.0,3883.9,9.71189696]
[1761205480149,0.0002,3884.0,3883.9,8.15669696]
[1761205480350,0.0002,3884.0,3883.9,7.05061158]
[1761205481467,0.4339,3884.4,3884.3,2.57446644]
[1761205481768,0.4339,3884.4,3884.3,5.84146644]
[1761205484336,0.0004,3884.4,3884.3,6.34834644]
[1761205484686,0.0004,3884.4,3884.3,6.79154644]
[1761205484840,2.57358697,3885.7,3884.3,6.79154644]
[1761205484841,0.4281,3886.2,3886.0,2.57332414]
[1761205485163,0.4281,3886.2,3886.1,3.267]
[1761205485325,0.4281,3886.2,3886.1,5.84027397]
[1761205485677,0.4281,3886.2,3886.1,3.267]
[1761205487434,0.4281,3886.2,3886.1,5.84027397]
[1761205487633,0.4281,3886.2,3886.1,3.267]
[1761205488327,0.1826,3886.4,3886.1,3.267]
[1761205488532,0.4281,3886.3,3886.1,3.267]
[1761205489861,0.4281,3886.3,3886.1,5.84025336]
[1761205490159,0.4281,3886.3,3886.2,2.57320776]
[1761205490334,0.1826,3886.4,3886.1,5.84026291]
[1761205490537,0.4281,3886.3,3886.1,5.84026291]
[1761205490742,0.4281,3886.3,3886.2,2.57320776]
[1761205490942,0.4281,3886.3,3886.1,5.8402698]
[1761205491350,0.1826,3886.4,3886.2,2.57315243]
[1761205491550,0.4281,3886.3,3886.1,3.267]
[1761205492859,2.57320776,3886.2,3884.8,1.9984]
[1761205493059,2.57320776,3886.2,3885.0,1.5552]
[1761205493263,0.4254,3886.1,3885.2,2.57387007]
[1761205493462,0.4254,3886.1,3885.5,2.57362025]
[1761205493667,0.4254,3886.1,3885.6,3.266]
[1761205493872,2.99869147,3886.1,3885.6,3.266]
[1761205494076,0.1553,3885.7,3885.6,3.266]
[1761205494280,0.1553,3885.7,3884.2,0.2142]
[1761205494470,0.4227,3885.6,3884.8,2.57408236]
[1761205494776,2.99631612,3885.6,3884.9,3.266]
[1761205494978,0.1288,3885.5,3884.9,3.3948]
[1761205495278,3.12517259,3885.5,3884.9,3.3948]
[1761205495651,0.4227,3885.4,3884.9,3.3948]
[1761205496687,0.1288,3885.0,3884.9,3.266]
[1761205497047,0.5515,3885.0,3884.9,3.266]
[1761205498577,0.4227,3885.3,3884.9,3.966]
[1761205498749,0.4227,3885.3,3884.9,6.54001221]
[1761205500175,0.4227,3885.3,3885.0,2.57394099]
[1761205500380,0.4227,3885.6,3885.0,0.50688]
[1761205500579,0.4227,3885.6,3885.1,0.1288]
[1761205500874,0.4227,3885.6,3885.2,5.8398125]
[1761205501174,0.4227,3885.6,3885.2,3.266]
[1761205501380,2.99635645,3885.6,3885.2,3.266]
[1761205501552,0.1288,3885.4,3885.2,3.266]
[1761205502048,0.4227,3885.3,3885.2,3.266]
[1761205503700,0.1288,3885.7,3885.2,3.266]
[1761205503995,0.5515,3886.0,3885.6,2.57357218]
[1761205504163,0.5515,3886.0,3885.7,3.266]
[1761205504779,0.42,3885.9,3885.7,3.266]
[1761205505102,0.1288,3886.0,3885.8,2.5734703]
[1761205505256,0.1288,3886.0,3885.7,5.83952762]
[1761205505772,0.1288,3886.0,3885.7,3.266]
[1761205506079,0.128,3886.0,3885.7,3.266]
[1761205506678,0.548,3886.0,3885.7,5.83952918]
[1761205506985,0.128,3886.0,3885.7,3.266]
[1761205507182,0.1298,3886.3,3885.8,2.57347264]
[1761205507354,0.42,3886.2,3885.8,2.57347264]
[1761205507783,0.42,3886.2,3885.8,2.57345906]
[1761205508964,0.1298,3886.3,3885.8,2.57345906]
[1761205508965,0.42,3886.1,3885.8,2.57345906]
[1761205509167,0.1606,3885.9,3885.7,3.266]
[1761205509588,0.3417,3886.2,3885.7,3.266]
[1761205509791,0.001,3886.3,3885.8,0.50688]
[1761205509970,0.2372,3885.8,3885.7,3.266]
[1761205510293,0.2372,3885.8,3885.7,5.83953887]
[1761205510456,0.3417,3886.1,3885.8,2.57344689]
[1761205511093,0.3417,3886.1,3885.7,5.83947381]
[1761205511782,0.001,3886.3,3885.7,5.83947381]
[1761205511979,0.3427,3886.3,3885.8,2.57346645]
[1761205512163,0.3427,3886.3,3885.7,5.83951933]
[1761205512599,0.3427,3886.3,3885.8,2.57346348]
[1761205514262,0.3427,3886.3,3885.7,5.83953112]
[1761205514666,0.3427,3886.3,3885.7,3.266]
[1761205514862,0.3427,3886.3,3885.9,2.57338884]
[1761205515067,0.3427,3886.3,3886.0,3.265]
[1761205515068,0.001,3886.3,3886.0,3.265]
[1761205515266,0.001,3886.3,3886.1,2.5732473]
[1761205515694,0.001,3886.3,3886.2,0.7]
[1761205516114,0.001,3886.3,3886.2,3.27320776]
[1761205516272,0.001,3886.3,3886.2,2.57320776]
[1761205517210,0.001,3886.3,3886.2,0.88510364]
[1761205517509,0.3411,3886.3,3886.0,3.265]
[1761205518196,0.2911,3886.3,3886.0,3.265]
[1761205519008,0.1288,3886.1,3886.0,3.265]
[1761205519423,0.1842,3886.8,3886.1,2.57326187]
[1761205519718,0.1288,3886.4,3886.0,3.265]
[1761205520025,0.1288,3886.4,3886.1,2.5732669]
[1761205520378,0.4204,3886.4,3886.1,2.5732669]
[1761205520881,0.4204,3886.4,3886.2,2.57319988]
[1761205521691,0.1288,3886.4,3886.2,2.57319988]
[1761205521896,0.1288,3886.4,3886.3,3.265]
[1761205522115,0.1288,3886.4,3886.3,5.83814154]
[1761205522693,0.4204,3886.4,3885.9,0.1288]
[1761205523002,1.8468,3886.4,3885.8,0.002]
[1761205523211,0.0638,3885.9,3885.8,0.002]
[1761205523583,4.65560641,3885.9,3885.8,0.002]
[1761205523811,2.0822,3885.9,3885.8,0.002]
[1761205524615,0.527,3885.9,3885.8,0.002]
[1761205527648,0.5214,3885.9,3885.8,0.002]
[1761205529730,0.4632,3886.1,3885.8,0.002]
[1761205530103,1.5552,3886.2,3885.8,0.002]
[1761205530297,0.4593,3886.1,3885.8,0.002]
[1761205530498,0.4585,3886.1,3885.8,0.002]
[1761205532547,1.5552,3886.2,3885.8,0.002]
[1761205532729,0.4585,3886.1,3885.8,0.002]
[1761205532930,0.1288,3885.9,3885.8,0.002]
[1761205533722,0.1288,3886.0,3885.8,0.002]
[1761205535064,0.5873,3886.0,3885.8,0.002]
[1761205535554,0.1288,3886.0,3885.8,0.002]
[1761205535757,0.1288,3886.0,3885.8,2.57546941]
[1761205535934,0.1288,3886.0,3885.8,0.002]
[1761205536839,0.1288,3886.0,3885.8,2.57545116]
[1761205537854,0.1288,3886.0,3885.8,0.002]
[1761205538750,0.4595,3886.4,3885.8,0.002]
[1761205539053,0.1288,3886.1,3885.8,0.64505734]
[1761205539254,0.1298,3886.4,3885.9,3.06034047]
[1761205539455,0.1298,3886.4,3886.1,2.57321527]
[1761205539767,0.5883,3886.4,3886.2,3.265]
[1761205539975,0.1298,3886.4,3886.2,3.265]
[1761205541361,0.001,3886.4,3886.3,3.56695295]
[1761205541986,0.001,3886.4,3886.3,4.26695295]
[1761205542330,0.001,3886.4,3886.3,6.37287352]
[1761205543260,0.001,3886.4,3886.3,6.24407352]
[1761205547526,0.001,3886.4,3886.3,3.73434154]
[1761205547764,0.001,3886.4,3886.3,3.58877386]
[1761205548336,0.001,3886.4,3886.3,4.09565386]
[1761205548544,0.001,3886.4,3886.3,4.55685386]
[1761205548862,0.001,3886.4,3886.3,3.58877386]
[1761205549055,0.001,3886.4,3886.3,6.85277386]
[1761205549569,0.001,3886.4,3886.3,7.35965386]
[1761205552265,0.001,3886.4,3886.3,6.34402154]
[1761205553156,0.001,3886.4,3886.3,6.47282154]
[1761205554437,0.001,3886.4,3886.3,6.93402154]
[1761205554956,0.0002,3886.4,3886.3,6.93402154]
[1761205558869,0.0002,3886.4,3886.3,6.47282154]
[1761205559380,0.0002,3886.4,3886.3,6.95977267]
[1761205561289,0.4079,3886.4,3886.3,0.50688]
[1761205561498,0.4079,3886.4,3886.3,3.77088]
[1761205561676,0.0002,3886.4,3886.3,6.34402154]
[1761205561877,0.0002,3886.4,3886.3,3.77088]
[1761205562184,0.0002,3886.4,3886.3,6.34402154]
[1761205562981,0.4079,3886.4,3886.1,0.002]
[1761205563183,0.4079,3886.4,3886.1,2.57526958]
[1761205563697,0.4079,3886.4,3886.1,0.002]
[1761205564362,0.4079,3886.4,3886.3,2.57314154]
[1761205564363,0.0002,3886.4,3886.3,2.57314154]
[1761205564563,0.0002,3886.4,3886.3,5.83714154]
[1761205564975,0.0002,3886.4,3886.3,6.34402154]
[1761205565501,0.0002,3886.4,3886.3,7.28337882]
[1761205565797,0.0002,3886.4,3886.3,7.75767882]
[1761205565965,0.0002,3886.4,3886.3,6.34402154]
[1761205566166,0.0002,3886.4,3886.3,3.77088]
[1761205566367,0.4079,3886.4,3886.3,3.77088]
[1761205566564,0.4079,3886.4,3886.3,3.264]
[1761205571308,0.0002,3886.4,3886.3,6.34402154]
[1761205572889,0.0002,3886.4,3886.3,7.7705571]
[1761205573092,0.0002,3886.4,3886.3,7.4250571]
[1761205574604,0.0002,3886.4,3886.3,7.4270571]
[1761205576014,0.0002,3886.4,3886.3,7.9013571]
[1761205576517,0.0002,3886.4,3886.3,7.4270571]
[1761205577301,0.4079,3886.4,3886.3,7.4270571]
[1761205577505,0.0002,3886.4,3886.3,7.4270571]
[1761205577802,0.4079,3886.4,3886.3,3.266]
[1761205579626,0.4071,3886.4,3886.3,3.266]
[1761205579829,0.1288,3886.6,3886.3,3.266]
[1761205581025,0.1288,3886.6,3886.3,5.83910346]
[1761205581223,0.1288,3886.6,3886.4,2.57306534]
[1761205581524,0.5359,3886.6,3886.3,5.83912246]
[1761205582022,0.4071,3886.5,3886.3,5.83912246]
[1761205582229,0.1288,3886.6,3886.4,2.57307533]
[1761205583096,0.5359,3886.6,3886.4,2.57307533]
[1761205583292,0.5359,3886.6,3886.3,3.266]
[1761205583520,0.4071,3886.5,3886.3,3.266]
[1761205584245,0.1288,3886.6,3886.3,3.266]
[1761205584246,0.1288,3886.6,3886.3,4.12033185]
[1761205584455,0.171,3889.6,3887.0,4.00570396]
[1761205584625,0.171,3889.6,3888.9,0.50688]
[1761205584811,0.171,3889.6,3889.3,0.50688]
[1761205584812,0.6042,3889.6,3889.3,0.50688]
[1761205585140,0.6042,3889.6,3889.4,2.942]
[1761205585311,0.4332,3889.5,3889.4,2.942]
[1761205585513,0.70055,3889.5,3889.4,2.942]
[1761205588111,0.70055,3889.5,3887.9,0.2146]
[1761205588333,2.5712893,3889.1,3888.2,0.50688]
[1761205588529,0.4108,3889.4,3888.4,0.50688]
[1761205588713,3.47950386,3889.3,3888.5,3.288]
[1761205588907,2.57122997,3889.2,3888.5,3.288]
[1761205589111,2.98202997,3889.2,3888.5,3.288]
[1761205589335,0.4108,3889.1,3888.5,3.288]
[1761205589532,0.34795669,3889.0,3888.5,3.288]
[1761205589742,0.2222,3888.6,3888.5,3.288]
[1761205590508,0.6469,3888.9,3888.5,3.288]
[1761205590709,0.2222,3888.9,3888.5,3.288]
[1761205590913,0.4247,3888.8,3888.5,3.288]
[1761205591114,0.2222,3888.9,3888.5,5.85967077]
[1761205591349,0.96523692,3889.3,3888.7,2.57154446]
[1761205591600,0.26735,3889.5,3888.9,0.50688]
[1761205591884,0.26735,3889.5,3888.2,2.57182855]
[1761205591885,0.73215,3889.5,3889.1,0.50688]
[1761205592053,0.73215,3889.5,3889.1,3.79388]
[1761205592253,0.4648,3889.4,3889.1,3.287]
[1761205593374,3.0358981,3889.4,3889.1,3.287]
[1761205593569,0.50304481,3889.3,3889.1,3.287]
[1761205593772,0.96784481,3889.3,3889.1,3.287]
[1761205594104,0.4648,3889.3,3889.1,3.287]
[1761205594250,0.4648,3889.2,3889.1,3.287]
[1761205594451,0.5936,3889.2,3889.1,3.287]
[1761205596471,0.1288,3889.2,3889.1,3.287]
[1761205596679,0.5936,3889.2,3888.3,0.50688]
[1761205596872,0.5936,3889.2,3887.2,0.2256]
[1761205596873,0.1845,3888.4,3887.2,0.2256]
[1761205597077,0.1845,3888.4,3887.8,2.57210489]
[1761205597286,0.1845,3888.4,3887.9,3.285]
[1761205597590,0.6465,3888.4,3887.9,3.285]
[1761205598016,0.462,3888.3,3887.9,3.285]
[1761205598317,0.78382649,3888.3,3887.9,3.285]
[1761205598909,0.462,3888.2,3887.9,3.285]
[1761205599584,5.76427187,3890.0,3887.9,3.285]
[1761205599794,0.72765,3889.5,3888.1,0.50688]
[1761205600131,0.4566,3889.4,3888.7,2.57149891]
[1761205600330,0.4566,3889.4,3888.8,5.85747798]
[1761205600630,2.0118,3889.4,3888.8,3.286]
[1761205600910,0.4566,3889.4,3888.8,3.286]
[1761205601113,0.34670308,3889.3,3888.8,3.286]
[1761205601638,0.80330308,3889.3,3889.0,2.57134415]
[1761205601812,0.34670308,3889.3,3889.0,2.57134415]
[1761205601995,0.26835,3889.5,3889.1,2.57122301]
[1761205602491,0.26835,3889.5,3889.2,2.57121319]
[1761205603002,0.26835,3889.5,3889.1,2.57127804]
[1761205603199,0.001,3889.5,3889.2,3.286]
[1761205603910,0.0002,3889.5,3889.2,3.286]
[1761205604094,0.4568,3889.5,3889.2,3.286]
[1761205604620,0.0002,3889.5,3889.2,5.8572063]
[1761205604909,0.0002,3889.5,3889.2,3.286]
[1761205606313,0.0002,3889.5,3889.3,0.2256]
[1761205606612,0.0002,3889.5,3889.2,5.85718768]
[1761205606778,0.0002,3889.5,3889.2,3.286]
[1761205606982,0.129,3889.5,3889.2,3.286]
[1761205607291,0.129,3889.5,3889.2,5.85721397]
[1761205607815,0.129,3889.5,3889.2,3.286]
[1761205608016,0.67454,3889.5,3888.9,3.284]
[1761205608319,0.67454,3889.5,3888.9,3.4128]
[1761205608703,0.67454,3889.5,3889.0,2.5713551]
[1761205608922,0.67454,3889.5,3889.1,2.57123945]
[1761205609224,0.129,3889.5,3889.1,2.57123945]
[1761205611621,0.129,3889.5,3888.9,5.98421491]
[1761205611822,0.129,3889.5,3889.1,2.57128005]
[1761205612685,0.4314,3889.5,3888.9,5.98417658]
[1761205612920,0.4314,3889.5,3888.9,3.4128]
[1761205613307,0.4314,3889.5,3889.1,2.57127747]
[1761205614024,0.3024,3889.4,3888.9,3.284]
[1761205614200,0.3024,3889.4,3888.9,5.85541897]
[1761205614201,0.1288,3889.0,3888.9,5.85541897]
[1761205615012,0.1288,3889.4,3889.0,2.571338]
[1761205615326,0.1288,3889.4,3889.1,2.57123017]
[1761205615738,0.1288,3889.4,3888.9,5.85535724]
[1761205615933,0.1288,3889.4,3888.8,0.1288]
[1761205615934,0.3024,3889.3,3889.2,3.284]
[1761205616112,0.60263736,3889.3,3889.2,3.284]
[1761205616421,0.73143736,3889.3,3889.2,3.284]
[1761205616620,0.67143736,3889.3,3889.2,3.284]
[1761205617512,3.24261226,3889.3,3888.8,3.284]
[1761205617711,0.2222,3888.9,3888.8,3.284]
[1761205618526,0.4333,3888.9,3888.8,3.284]
[1761205618690,0.2222,3888.9,3888.8,3.284]
[1761205618891,0.4333,3888.9,3888.5,3.284]
[1761205619090,0.1288,3888.7,3888.5,3.284]
[1761205619512,0.3399,3888.7,3888.5,3.284]
[1761205620593,0.2111,3888.6,3888.5,3.284]
[1761205621829,0.5244541,3888.6,3888.5,3.284]
[1761205622027,0.2111,3888.6,3888.2,3.283]
[1761205622231,0.1288,3888.3,3888.2,3.283]
[1761205622725,0.3399,3888.3,3888.2,3.283]
[1761205622926,0.3399,3888.3,3887.8,0.002]
[1761205623099,0.1288,3887.9,3887.8,3.285]
[1761205623498,0.3399,3887.9,3887.8,3.285]
[1761205623697,0.1288,3887.9,3887.8,3.285]
[1761205625540,0.3399,3887.9,3887.8,3.285]
[1761205626052,0.5209,3887.9,3887.8,3.285]
[1761205627425,0.1288,3887.9,3887.8,3.285]
[1761205627626,2.57150627,3888.8,3887.8,6.31114877]
[1761205627827,2.57150627,3888.8,3887.9,0.454]
[1761205627828,0.1288,3888.1,3887.9,0.454]
[1761205628027,0.1288,3888.1,3888.0,2.57199545]
[1761205628326,0.128,3888.1,3888.0,3.02599545]
[1761205628823,0.128,3888.1,3887.8,3.285]
[1761205629080,0.128,3888.1,3887.9,2.57207971]
[1761205629254,0.128,3888.1,3887.8,3.285]
[1761205629550,0.128,3888.1,3887.9,2.57202764]
[1761205629921,0.3041,3888.1,3887.8,3.285]
[1761205630120,0.2174,3887.9,3887.8,0.002]
[1761205630351,2.91828261,3887.9,3887.8,0.002]
[1761205630534,4.64998261,3887.9,3887.8,0.002]
[1761205633520,2.0779,3887.9,3887.8,0.002]
[1761205633722,4.64998261,3887.9,3887.8,0.002]
[1761205634024,7.61518165,3887.9,3887.8,0.002]
[1761205634647,8.50473326,3887.9,3887.8,0.002]
[1761205639663,3.48403326,3887.9,3887.8,0.002]
[1761205639864,0.177,3888.5,3887.8,0.002]
[1761205640161,2.78868261,3887.9,3887.8,0.002]
[1761205640527,2.96608261,3887.9,3887.8,0.002]
[1761205640724,2.57208261,3887.9,3887.8,0.002]
[1761205640930,2.74930309,3888.2,3887.8,0.002]
[1761205641136,2.57208261,3887.9,3887.8,0.002]
[1761205641568,4.12723491,3888.0,3887.8,0.002]
[1761205641759,2.57208261,3887.9,3887.8,0.002]
[1761205641960,4.12723389,3888.0,3887.8,0.002]
[1761205642263,2.57208261,3887.9,3887.8,0.002]
[1761205642565,1.5552,3888.0,3887.8,0.002]
[1761205642865,0.58648484,3888.2,3887.8,0.002]
[1761205643040,3.287,3888.2,3887.8,0.002]
[1761205643243,3.4647,3888.2,3887.8,0.002]
[1761205643457,6.03658753,3888.2,3887.8,0.002]
[1761205643637,0.1777,3888.1,3887.8,0.002]
[1761205643835,2.74965346,3888.1,3887.8,0.002]
[1761205644032,0.1288,3887.9,3887.8,0.002]
[1761205644858,0.96114535,3887.9,3887.8,0.002]
[1761205645065,6.86852796,3887.9,3887.8,0.002]
[1761205645263,8.42372796,3887.9,3887.8,0.002]
[1761205648577,5.13772796,3887.9,3887.8,0.002]
[1761205648779,8.42472796,3887.9,3887.8,0.002]
[1761205649967,8.24662796,3887.9,3887.8,0.002]
[1761205650167,8.03082796,3887.9,3887.8,0.002]
[1761205650774,8.42482796,3887.9,3887.8,0.002]
[1761205651615,8.42582796,3887.9,3887.8,0.002]
[1761205652879,8.42502796,3887.9,3887.8,0.002]
[1761205654883,8.55382796,3887.9,3887.8,0.002]
[1761205662768,10.55648439,3887.9,3887.8,0.002]
[1761205670811,10.55038439,3887.9,3887.8,0.002]
[1761205671317,10.55138439,3887.9,3887.8,0.002]
[1761205671519,6.87548439,3887.9,3887.8,0.002]
[1761205671810,9.41193904,3887.9,3887.8,0.002]
[1761205673813,9.57743904,3887.9,3887.8,0.002]
[1761205674021,9.80533904,3887.9,3887.8,0.002]
[1761205674933,9.41193904,3887.9,3887.8,0.002]
[1761205676487,9.40993904,3887.9,3887.8,0.002]
[1761205677332,10.42717092,3887.9,3887.8,0.002]
[1761205678011,7.14817092,3887.9,3887.8,0.002]
[1761205678192,7.40548261,3887.9,3887.8,0.002]
[1761205681525,4.12748261,3887.9,3887.8,0.002]
[1761205681742,7.40448261,3887.9,3887.8,0.4405]
[1761205681898,7.53328261,3887.9,3887.8,0.4405]
[1761205682403,4.25628261,3887.9,3887.8,0.4405]
[1761205682734,3.4058,3887.9,3887.8,0.4405]
[1761205683028,0.1298,3887.9,3887.8,0.4405]
[1761205683428,1.685,3887.9,3887.8,0.4405]
[1761205683623,0.1298,3887.9,3887.8,0.4405]
[1761205684945,0.1298,3887.9,3887.8,0.74178387]
[1761205685468,0.1298,3887.9,3887.8,0.4405]
[1761205688877,0.1298,3887.9,3887.8,0.002]
[1761205689235,0.1298,3887.9,3887.8,0.4405]
[1761205693645,2.70188261,3887.9,3887.8,0.002]
[1761205693975,5.97288261,3887.9,3887.8,0.002]
[1761205694484,3.4008,3887.9,3887.8,0.4405]
[1761205694837,5.97288261,3887.9,3887.8,0.002]
[1761205695163,8.75493345,3887.9,3887.8,0.002]
[1761205695765,8.58293345,3887.9,3887.8,0.002]
[1761205695982,8.75493345,3887.9,3887.8,0.002]
[1761205696790,8.97743345,3887.9,3887.8,0.002]
[1761205701768,8.97663345,3887.9,3887.8,0.002]
[1761205708215,2.57234726,3887.5,3887.4,0.002]
[1761205708396,9.57270369,3887.5,3887.4,0.002]
[1761205708594,9.70150369,3887.5,3887.4,0.002]
[1761205710017,2.57261197,3887.1,3887.0,0.002]
[1761205710224,10.19930197,3887.1,3887.0,0.002]
[1761205710429,10.37180197,3887.1,3887.0,0.002]
[1761205713205,10.37180197,3887.1,3886.3,0.002]
[1761205713206,2.57307533,3886.4,3886.3,0.002]
[1761205713423,9.52973176,3886.4,3886.3,0.002]
[1761205713618,10.26614903,3886.4,3886.3,0.002]
[1761205713819,9.91454903,3886.4,3886.3,0.002]
[1761205714134,10.04974903,3886.4,3886.3,0.002]
[1761205714637,10.18057283,3886.4,3886.3,0.002]
[1761205715337,10.04537283,3886.4,3886.3,0.002]
[1761205718349,10.18057283,3886.4,3886.3,0.002]
[1761205719548,10.04537283,3886.4,3886.3,0.002]
[1761205719751,10.18057283,3886.4,3886.3,0.002]
[1761205722646,10.04537283,3886.4,3886.3,0.002]
[1761205722847,10.4474545,3886.4,3886.3,0.002]
[1761205726321,10.4466545,3886.4,3886.3,0.002]
[1761205727361,10.5818545,3886.4,3886.3,0.002]
[1761205727734,10.4466545,3886.4,3886.3,0.002]
[1761205730223,7.1766545,3886.4,3886.3,0.002]
[1761205730428,6.79183723,3886.4,3886.3,0.4383]
[1761205730658,10.06283723,3886.4,3886.3,0.4383]
[1761205731152,7.65809913,3886.4,3886.3,0.4383]
[1761205731922,4.38709913,3886.4,3886.3,0.4383]
[1761205732132,7.65809913,3886.4,3886.3,0.4383]
[1761205735432,7.52929913,3886.4,3886.3,0.4383]
[1761205742185,2.57372159,3887.0,3886.3,3.01143887]
[1761205742359,2.57372159,3887.0,3886.4,0.32335389]
[1761205742674,2.57372159,3887.0,3886.4,0.76375389]
[1761205743044,1.5552,3886.9,3886.5,0.46613009]
[1761205743247,0.001,3887.0,3886.6,2.57294293]
[1761205743573,0.001,3887.0,3886.7,0.74173429]
[1761205743981,0.001,3887.0,3886.8,0.4404]
[1761205745381,0.1288,3886.9,3886.8,0.4404]
[1761205746067,0.001,3887.0,3886.8,3.01321053]
[1761205746246,0.001,3887.0,3886.8,3.14201053]
[1761205746447,0.001,3887.0,3886.9,0.78473448]
[1761205746647,0.001,3887.0,3886.9,3.01314434]
[1761205748977,0.001,3887.0,3886.9,0.94728]
[1761205749152,0.001,3887.0,3886.9,3.64882434]
[1761205750847,0.0002,3887.0,3886.9,3.64882434]
[1761205751469,0.0002,3887.0,3886.9,1.07608]
[1761205751667,0.0002,3887.0,3886.9,1.44096347]
[1761205751866,0.0002,3887.0,3886.9,4.01370781]
[1761205753680,0.0002,3887.0,3886.9,6.28964591]
[1761205753889,0.0002,3887.0,3886.9,7.84484591]
[1761205754087,0.0002,3887.0,3886.9,7.94781886]
[1761205758805,0.0002,3887.0,3886.9,11.21681886]
[1761205761782,0.10297216,3890.4,3887.0,1.5552]
[1761205761976,2.57122287,3889.2,3888.0,0.221]
[1761205762218,0.1252,3889.1,3888.1,0.94728]
[1761205762380,1.5552,3889.3,3888.2,3.01227852]
[1761205762582,1.5552,3889.3,3888.3,3.01221185]
[1761205762583,2.08904753,3889.3,3888.3,3.01221185]
[1761205762776,2.57129033,3889.1,3888.3,3.01221185]
[1761205763080,2.6964377,3889.2,3888.4,2.57174568]
[1761205763298,0.40864753,3889.3,3888.4,0.94728]
[1761205763496,1.5552,3889.4,3888.6,2.57155552]
[1761205763808,0.1288,3889.1,3888.6,2.57155552]
[1761205764109,0.1288,3889.1,3888.5,0.5692]
[1761205764110,0.1288,3889.1,3888.7,3.01193868]
[1761205765025,0.1288,3889.1,3888.5,0.1288]
[1761205765410,0.69203596,3889.1,3888.5,2.70048439]
[1761205766294,0.254,3889.1,3888.5,0.1288]
[1761205766496,0.254,3889.1,3888.7,2.57154551]
[1761205766696,0.254,3889.1,3888.5,0.1288]
[1761205766697,0.1288,3889.1,3888.8,2.57148424]
[1761205766924,0.1288,3889.1,3888.6,6.28581104]
[1761205767132,0.1288,3889.1,3888.6,6.28581889]
[1761205768023,0.1288,3889.1,3888.6,3.268]
[1761205768223,0.1252,3889.0,3888.6,3.268]
[1761205768520,0.1298,3889.1,3888.6,3.268]
[1761205768726,0.1298,3889.1,3888.6,6.27071741]
[1761205768923,0.1298,3889.1,3888.6,3.6991]
[1761205769107,0.1298,3889.1,3888.6,6.27071211]
[1761205769423,0.1262,3889.1,3888.6,3.268]
[1761205769628,3.2243519,3889.1,3888.6,3.268]
[1761205770334,2.57135876,3889.0,3888.6,3.268]
[1761205770496,2.69655876,3889.0,3888.6,3.268]
[1761205770696,2.57156101,3888.7,3888.0,2.79300027]
[1761205770909,2.57149823,3888.8,3888.1,5.83994762]
[1761205771229,3.51961042,3888.8,3888.1,5.83994762]
[1761205771428,0.3464,3888.7,3888.1,5.83994762]
[1761205772712,0.3464,3888.7,3888.1,3.268]
[1761205772922,2.7511381,3888.7,3887.7,2.57216182]
[1761205773119,2.57172069,3888.5,3887.7,5.83916182]
[1761205773614,0.3464,3888.4,3887.7,5.83916182]
[1761205773820,0.3464,3888.4,3887.8,2.57214387]
[1761205774115,0.42783563,3888.6,3887.7,5.8392143]
[1761205774320,0.1191,3888.6,3888.0,2.57200654]
[1761205774536,4.1267596,3888.7,3888.0,2.57200654]
[1761205774838,4.2458596,3888.7,3888.0,2.57200654]
[1761205775050,1.5552,3888.7,3887.7,3.267]
[1761205775226,2.6899196,3888.6,3887.9,2.57203678]
[1761205775422,0.1191,3888.6,3887.9,2.57203678]
[1761205776240,2.57193333,3888.2,3887.7,3.267]
[1761205776445,2.57193333,3888.2,3886.9,0.36688347]
[1761205776446,2.57228815,3887.6,3886.9,0.002]
[1761205776633,2.69462906,3887.7,3886.9,0.002]
[1761205776836,0.1224,3887.7,3886.9,0.002]